Cogmind - Beta 10.2 @@@ ROGUE MODE // 2021.10.13 @ 19:06:37 Player: Coronach Result: Self-destructed Performance ------------- Evolutions (4) 2000 Regions Visited (10) 2000 Robots Destroyed (67) 335 Value Destroyed (2408) 2408 Prototype IDs (43) 860 Alien Tech Used (0) 0 Bonus (740) 740 TOTAL SCORE: 8343 Bonus ------- High Alert Combat Kills 210 Follower Combat Kills 247 Aligned with FarCom 300 Friendly Fire -17 Cogmind --------- Core Integrity 772/850 Matter 223/300 Energy 100/100 System Corruption 2% Temperature Cool (18) Movement Treading (180) Ox1 Location -6/Factory Parts ------- > --- POWER (1) -------- (None) > --- PROPULSION (3) --- Medium Treads Medium Treads > --- UTILITY (7) ------ Improved Cooling System Humpback Improved Sensor Array Experimental Signal Interpreter Transmission Jammer > --- WEAPON (4) ------- Precision Assault Rifle Precision Assault Rifle Coil Gun > --- INVENTORY (24) --- Enhanced Nuclear Core Enhanced Nuclear Core Medium Treads Humpback Large Battery (300) Compact Matter Pod (150) Improved Salvage Targeting Computer Armor Integrity Analyzer Improved ECM Suite Power Shielding System Shield Tractor Beam Shock Rifle Shock Rifle Gauss Rifle Gauss Rifle Flak Gun Guided EMP Blaster Precision Grenade Launcher Long-range Missile Launcher Axe Peak State ------------ > --- POWER ------------ Heavy Deuterium Engine > --- PROPULSION ------- Medium Treads Medium Treads Medium Treads > --- UTILITY ---------- Humpback Improved Sensor Array Experimental Signal Interpreter Transmission Jammer Hardened Light Armor Plating Improved Light Armor Plating > --- WEAPON ----------- Precision Assault Rifle Precision Assault Rifle Precision Assault Rifle Precision Assault Rifle > --- INVENTORY -------- Enhanced Nuclear Core Enhanced Nuclear Core Medium Treads Improved Cooling System Humpback Large Battery Compact Matter Pod Improved Salvage Targeting Computer Armor Integrity Analyzer Improved ECM Suite Power Shielding System Shield Tractor Beam Shock Rifle Gauss Rifle Gauss Rifle Flak Gun Coil Gun Guided EMP Blaster Long-range Missile Launcher Remote Datajack Axe [Rating: 63] Favorites ----------- Power Heavy Deuterium Engine Engine Heavy Deuterium Engine Power Core Nuclear Core Propulsion Compact Wheel Treads Medium Treads Leg Aluminum Leg Wheel Compact Wheel Utility Humpback Device Transmission Jammer Storage Humpback Processor Experimental Signal Interpreter Hackware System Shield Protection Improved Light Armor Plating Weapon Heavy Assault Rifle Energy Gun AWS/Thermal Energy Cannon Advanced Beam Cannon Ballistic Gun Heavy Assault Rifle Launcher Precision Grenade Launcher Special Weapon Remote Datajack Impact Weapon Heavy Mace Slashing Weapon Axe Build | -11 -10 -10 -9 -9 -9 -8 -8 -7 -7 -6 ------- Run | Scr Mat Min Mat Min Exi Min Mat Fac Sto Fac Slots Evolved 8 | . . . 2 . . . 2 2 . 2 Power . | . . . . . . . . . . . Propulsion 1 | . . . . . . . 1 . . . Utility 5 | . . . . . . . 1 2 . 2 Weapon 2 | . . . 2 . . . . . . . Parts Attached 123 | 4 9 7 3 1 6 . 11 11 53 18 Power 9 | 1 . 3 1 . . . . 1 3 . Engine 7 | 1 . 3 . . . . . 1 2 . Core 2 | . . . 1 . . . . . 1 . Reactor . | . . . . . . . . . . . Propulsion 23 | 2 3 4 . . . . 4 1 5 4 Treads 3 | . . . . . . . . . . 3 Leg . | . . . . . . . . . . . Wheel 20 | 2 3 4 . . . . 4 1 5 1 Hover . | . . . . . . . . . . . Flight . | . . . . . . . . . . . Utility 28 | 1 2 . . . 3 . 3 3 8 8 Device 4 | . . . . . . . 1 1 . 2 Storage 7 | 1 2 . . . 3 . . . 1 . Processor 2 | . . . . . . . . . . 2 Hackware 1 | . . . . . . . 1 . . . Protection 14 | . . . . . . . 1 2 7 4 Artifact . | . . . . . . . . . . . Weapon 63 | . 4 . 2 1 3 . 4 6 37 6 Energy Gun 10 | . . . . . 1 . . . 8 1 Energy Cannon 1 | . . . . . . . . . 1 . Ballistic Gun 34 | . 4 . 2 1 2 . 2 4 14 5 Ballistic Cannon . | . . . . . . . . . . . Launcher 3 | . . . . . . . . . 3 . Special Weapon 1 | . . . . . . . . . 1 . Impact Weapon 5 | . . . . . . . 2 2 1 . Slashing Weapon 9 | . . . . . . . . . 9 . Piercing Weapon . | . . . . . . . . . . . Special Melee Weapon . | . . . . . . . . . . . Unidentified Prototypes 16 | . . . . . . . 1 1 12 2 Parts Lost 12 | . 3 3 . . . . 1 . 1 4 Power 1 | . . 1 . . . . . . . . Propulsion 7 | . 2 2 . . . . 1 . 1 1 Utility 2 | . . . . . . . . . . 2 Weapon 2 | . 1 . . . . . . . . 1 Highest Loss Streak 3 | . 3 2 . . . . 1 . 1 1 Average Slot Usage (%) 91 | . 97 97 99 99 96 88 89 89 86 88 Engine 5 | . 14 12 7 . . . . 1 5 6 Core 3 | . . . 3 11 11 11 9 5 1 . Wheel 22 | . 26 27 22 22 22 22 26 23 22 16 Device 5 | . . . . . . . 6 7 7 13 Storage 13 | . 28 28 22 22 19 11 9 7 7 6 Processor 1 | . . . . . . . . . . 6 Protection 7 | . . . . . . . 1 13 14 12 Energy Gun 2 | . . . . . 1 . . . 4 3 Ballistic Gun 25 | . 26 28 43 43 41 44 29 27 16 18 Naked Turns . | . . . . . . . . . . . Heaviest Build 122 | 15 43 43 51 51 101 99 104 115 121 122 Greatest Support 84 | 20 32 32 32 32 32 32 48 48 44 84 Greatest Overweight (x) 4 | . 3 1 1 1 3 3 3 2 4 3 Average Overweight (x) 1 | . . 1 1 1 1 3 2 2 2 1 Largest Inventory Capacity 44 | 8 16 16 16 16 24 24 24 24 44 24 Average Capacity 21 | 6 15 16 16 16 18 24 24 24 24 24 Most Carried 24 | 6 16 16 16 16 24 24 24 24 24 24 Average Carried 20 | 1 5 15 15 15 17 24 22 23 23 23 Final Capacity 24 | 8 16 16 16 16 24 24 24 24 24 24 Final Carried 24 | 1 16 16 16 16 24 24 24 24 24 23 Class Distribution -------------------- 21% | Hauler-Mutant 15% | Mutant 15% | Commander-Skirmisher 14% | Gunner 11% | Hauler-Tank 6% | Hauler-Skirmisher 4% | Hauler-Gunner 3% | Commander-Tank 3% | Hauler-Assassin Dominant Class ---------------- Mutant | -10/Materials Mutant | -10/Mines Gunner | -9/Materials Gunner | -9/Mines Hauler-Gunner | -9/Exiles Hauler-Skirmisher | -8/Mines Hauler-Assassin | -8/Materials Hauler-Tank | -7/Factory Hauler-Mutant | -7/Storage Commander-Skirmisher | -6/Factory Resources | -11 -10 -10 -9 -9 -9 -8 -8 -7 -7 -6 ----------- Run | Scr Mat Min Mat Min Exi Min Mat Fac Sto Fac Matter Collected 3412 | 250 165 313 . 100 100 . 383 159 1500 442 Remotely . | . . . . . . . . . . . Salvage Created 3456 | 85 367 235 . 127 . . 153 159 1722 608 Parts 173 | 2 25 7 . 3 . . 11 10 78 37 Haulers Intercepted 6 | . 1 . . . . . . . 4 1 Recyclers Shooed 1 | 1 . . . . . . . . . . Parts Field Recycled . | . . . . . . . . . . . Retrieved Matter . | . . . . . . . . . . . Parts Self-Destructed . | . . . . . . . . . . . Prevented . | . . . . . . . . . . . Kills | -11 -10 -10 -9 -9 -9 -8 -8 -7 -7 -6 ------- Run | Scr Mat Min Mat Min Exi Min Mat Fac Sto Fac Combat Hostiles Destroyed 47 | . 7 3 . 2 . . 3 3 20 9 Guns 47 | . 7 3 . 2 . . 3 3 20 9 Classes Destroyed 15 | 1 5 1 . 1 . . . 1 4 2 Worker 4 | . 1 . . . . . 1 . 1 1 Hauler 6 | . 1 . . . . . . . 4 1 Recycler 7 | 1 1 2 . . . . . . 3 . Operator 2 | . . . . . . . . . 2 . Watcher 3 | . 1 . . . . . . . 2 . Swarmer 3 | . 3 . . . . . . . . . Grunt 17 | . 4 1 . . . . 2 . 8 2 Brawler 1 | . . . . . . . . . 1 . Duelist 1 | . . . . . . . . . 1 . Protector 1 | . . . . . . . . . . 1 Sentry 11 | . . . . 1 . . 1 1 7 1 Demolisher 1 | . . . . . . . . . . 1 Hunter 2 | . . . . . . . . . 1 1 Programmer 7 | . . . . . . . . 2 2 3 Assembled 2 | . . 2 . . . . . . . . Best Kill Streak 9 | 1 6 2 . 1 . . 2 1 9 3 Combat Bots Only 5 | . 5 1 . 1 . . 2 1 4 3 Max Kills in Single Turn 2 | 1 1 1 . 1 . . 1 1 1 2 Gunslinging . | . . . . . . . . . . . Exploded . | . . . . . . . . . . . Melee . | . . . . . . . . . . . Uniques/NPCs Destroyed 1 | . . . . 1 . . . . . . YI-UF0 (-9/Mines) Combat | -11 -10 -10 -9 -9 -9 -8 -8 -7 -7 -6 -------- Run | Scr Mat Min Mat Min Exi Min Mat Fac Sto Fac Damage Taken 3426 | . 361 473 . 159 . . 230 177 837 1189 Core 351 | . 73 64 . 11 . . 27 7 91 78 Absorbed by Shields . | . . . . . . . . . . . Core Remaining (%) 84 | 100 . 45 . . . 97 95 . 86 . Volleys Fired 204 | 5 60 23 . 5 . . 9 10 68 24 Largest 4 | 2 2 2 . 4 . . 4 4 4 4 Hottest 134 | 40 40 46 . 92 . . 92 102 134 114 Shots Fired 571 | 10 110 46 . 20 . . 36 40 214 95 Gun 571 | 10 110 46 . 20 . . 36 40 214 95 Cannon . | . . . . . . . . . . . Launcher . | . . . . . . . . . . . Special . | . . . . . . . . . . . Kinetic 504 | 10 110 46 . 20 . . 36 40 156 86 Thermal 64 | . . . . . . . . . 55 9 Explosive . | . . . . . . . . . . . Electromagnetic 3 | . . . . . . . . . 3 . Robot Hit Streak 23 | 5 10 5 . 4 . . 7 8 20 23 Robot Miss Streak 6 | 1 3 6 . 3 . . 3 5 3 2 Penetration Max 1 | . . . . . . . . . 1 . Secondary Targets 3 | . . . . . . . 1 . 1 1 Max Gunslinging Chain 1 | . . . . . . . 1 . 1 1 Autonomous 65 | . . . . . . . . . 55 10 Shots Hit Robots 400 | 9 65 25 . 8 . . 25 21 168 79 Core Hits 143 | 3 25 10 . 3 . . 9 7 61 25 Critical Hits 6 | . . 1 . . . . . . 3 2 Critical Kills 3 | . . . . . . . . . 1 2 Critical Parts Destroyed 3 | . . 1 . . . . . . 2 . Melee Attacks 42 | . . . . . . . 6 5 31 . Impact 11 | . . . . . . . 6 5 . . Slashing 31 | . . . . . . . . . 31 . Piercing . | . . . . . . . . . . . Sneak Attacks . | . . . . . . . . . . . Combat Hostiles . | . . . . . . . . . . . Follow-up Attacks . | . . . . . . . . . . . Damage Inflicted 7116 | 62 541 360 . 146 . . 355 328 3759 1565 Guns 7053 | 62 478 360 . 146 . . 355 328 3759 1565 Cannons . | . . . . . . . . . . . Explosions 63 | . 63 . . . . . . . . . Melee . | . . . . . . . . . . . Ramming . | . . . . . . . . . . . Kinetic 5247 | 62 478 360 . 146 . . 355 328 2228 1290 Thermal 1773 | . . . . . . . . . 1498 275 Explosive 63 | . 63 . . . . . . . . . Electromagnetic 33 | . . . . . . . . . 33 . Impact . | . . . . . . . . . . . Slashing . | . . . . . . . . . . . Piercing . | . . . . . . . . . . . Highest Corruption 2 | . . . . . . . . . . 2 Average Corruption 1 | . . . . . . . . . . 1 Corruption Purged . | . . . . . . . . . . . Effects 6 | . . . . . . . . . . 6 Message Errors 3 | . . . . . . . . . . 3 Data Loss (minor) 1 | . . . . . . . . . . 1 Targeting Errors 2 | . . . . . . . . . . 2 Overload Shots . | . . . . . . . . . . . Overflow Damage . | . . . . . . . . . . . Projectiles . | . . . . . . . . . . . Explosions . | . . . . . . . . . . . Melee . | . . . . . . . . . . . Knockbacks . | . . . . . . . . . . . Impact . | . . . . . . . . . . . Kinetic . | . . . . . . . . . . . Secondary . | . . . . . . . . . . . Self-Inflicted Damage . | . . . . . . . . . . . Shots . | . . . . . . . . . . . Rammed . | . . . . . . . . . . . Targets Rammed . | . . . . . . . . . . . Kicked . | . . . . . . . . . . . Crushed . | . . . . . . . . . . . Highest Temperature 262 | . 18 25 . 60 . . 181 122 262 242 Average Temperature 60 | . 9 8 . 29 . . 78 52 64 86 Received Heat Transfer 876 | . 144 255 . 9 . . 99 24 231 114 Effects 1 | . . . . . . . . . 1 . Energy Bleed 1 | . . . . . . . . . 1 . Siege Activations . | . . . . . . . . . . . Robots Corrupted . | . . . . . . . . . . . Combat Hostiles . | . . . . . . . . . . . Parts Fried . | . . . . . . . . . . . Impact Corruptions . | . . . . . . . . . . . Robots Melted . | . . . . . . . . . . . Combat Hostiles . | . . . . . . . . . . . Parts Melted 5 | . . . . . . . . . 5 . Heat Transferred 2220 | . . . . . . . . . 1887 333 Parts Sabotaged 4 | . . . . . . . . . . 4 Parts Stolen . | . . . . . . . . . . . Parts Stripped . | . . . . . . . . . . . Power Chain Reactions . | . . . . . . . . . . . Missiles Intercepted . | . . . . . . . . . . . Alert | -11 -10 -10 -9 -9 -9 -8 -8 -7 -7 -6 ------- Run | Scr Mat Min Mat Min Exi Min Mat Fac Sto Fac Peak Influence 811 | 5 309 57 105 40 . . 78 104 715 811 Initial 296 | . 3 42 19 40 . . . 24 20 296 Average 217 | 1 171 38 58 23 . . 43 44 214 551 Maximum Alert Level 3 | . 1 . . . . . . . 3 3 Low Security (%) 56 | 100 50 100 100 100 . 100 100 100 42 . Level 1 25 | . 50 . . . . . . . 50 27 Level 2 14 | . . . . . . . . . 5 55 Level 3 4 | . . . . . . . . . 1 16 Level 4 . | . . . . . . . . . . . Level 5 . | . . . . . . . . . . . High Security . | . . . . . . . . . . . Max Security . | . . . . . . . . . . . Squads Dispatched 12 | . 1 . . . . . . 1 4 6 Investigation 1 | . . . . . . . . . . 1 Extermination 6 | . . . . . . . . 1 2 3 Reinforcement 3 | . 1 . . . . . . . 2 . Assault 2 | . . . . . . . . . . 2 Garrison . | . . . . . . . . . . . Intercept . | . . . . . . . . . . . Construction Impeded . | . . . . . . . . . . . Haulers Reinforced 1 | . . . . . . . . . 1 . Stealth | -11 -10 -10 -9 -9 -9 -8 -8 -7 -7 -6 --------- Run | Scr Mat Min Mat Min Exi Min Mat Fac Sto Fac Distress Signals 8 | . 1 . 1 . . . . . 5 1 Communications Jammed 38 | . . . . . . . . . 34 4 Distress Signals 38 | . . . . . . . . . 34 4 Times Spotted 97 | . 11 10 3 4 . . 4 4 33 28 Peak Tracking Total 9 | . 5 3 3 2 . . 2 1 7 9 Tactical Retreats 7 | . . 4 . . . . . . 2 1 Traps | -11 -10 -10 -9 -9 -9 -8 -8 -7 -7 -6 ------- Run | Scr Mat Min Mat Min Exi Min Mat Fac Sto Fac Traps Triggered 6 | . 1 . . . . . . 1 4 . Indirectly . | . . . . . . . . . . . Trap Hack Attempts . | . . . . . . . . . . . Triggered . | . . . . . . . . . . . Disarmed . | . . . . . . . . . . . Reprogrammed . | . . . . . . . . . . . Reused . | . . . . . . . . . . . Traps Extracted . | . . . . . . . . . . . Installed . | . . . . . . . . . . . Triggered . | . . . . . . . . . . . Machines | -11 -10 -10 -9 -9 -9 -8 -8 -7 -7 -6 ---------- Run | Scr Mat Min Mat Min Exi Min Mat Fac Sto Fac Machines Disabled 14 | . 5 . . 1 . . . . 8 . Max in Single Turn 3 | . 3 . . 1 . . . . 1 . Garrison Access 1 | . . . . . . . . . . 1 Machines Sabotaged . | . . . . . . . . . . . Garrisons Compromised . | . . . . . . . . . . . Overloaded Fab Kills . | . . . . . . . . . . . Fab Network Shutdowns 1 | . . . . . . . . . . 1 Hacking | -11 -10 -10 -9 -9 -9 -8 -8 -7 -7 -6 --------- Run | Scr Mat Min Mat Min Exi Min Mat Fac Sto Fac Machines Accessed 29 | . 3 . 3 . 1 . 6 1 12 3 Terminals 21 | . 3 . 3 . . . 5 1 9 . Fabricators 1 | . . . . . . . . . . 1 Repair Stations 1 | . . . . . . . . . 1 . Recycling Units 3 | . . . . . . . . . 2 1 Scanalyzers 1 | . . . . . . . 1 . . . Garrison Access 1 | . . . . . . . . . . 1 Total Hacks 80 | . 11 . 9 . 1 . 22 2 29 6 Successful 45 | . 8 . 7 . 1 . 11 . 14 4 Failed 35 | . 3 . 2 . . . 11 2 15 2 Catastrophic 4 | . . . . . . . 2 1 1 . Database Lockouts . | . . . . . . . . . . . Manual 56 | . 10 . 7 . 1 . 13 . 21 4 Terminals 64 | . 11 . 9 . . . 19 2 23 . Fabricators 1 | . . . . . . . . . . 1 Repair Stations 2 | . . . . . . . . . 2 . Recycling Units 6 | . . . . . . . . . 4 2 Scanalyzers 3 | . . . . . . . 3 . . . Garrison Access 3 | . . . . . . . . . . 3 Terminal Hacks 19 | . 4 . 3 . 1 . 4 . 7 . Robot Analysis 1 | . . . 1 . . . . . . . Prototype ID Bank 3 | . . . . . . . 2 . 1 . Open Door 3 | . . . . . . . . . 3 . Branch Access Points 3 | . 1 . 1 . . . 1 . . . Terminal Index 3 | . 1 . 1 . . . . . 1 . Locate Traps 2 | . 1 . . . . . . . 1 . Zone Layout 3 | . 1 . . . . . 1 . 1 . EX-Prototype ID Bank 1 | . . . . . 1 . . . . . Fabricator Hacks 1 | . . . . . . . . . . 1 Build 1 | . . . . . . . . . . 1 Repair Station Hacks 1 | . . . . . . . . . 1 . Scan Component 1 | . . . . . . . . . 1 . Recycling Unit Hacks . | . . . . . . . . . . . Scanalyzer 3 | . . . . . . . 3 . . . Insert Component 1 | . . . . . . . 1 . . . Analyze 2 | . . . . . . . 2 . . . Garrison Access Hacks . | . . . . . . . . . . . Unauthorized Hacks 21 | . 4 . 4 . . . 4 . 6 3 Terminals 16 | . 4 . 4 . . . 4 . 4 . Track 1 | . . . 1 . . . . . . . Assimilate 1 | . . . . . . . . . 1 . Botnet 9 | . 2 . 2 . . . 3 . 2 . Operators 5 | . 2 . 1 . . . 1 . 1 . Fabricators . | . . . . . . . . . . . Repair Stations . | . . . . . . . . . . . Recycling Units 4 | . . . . . . . . . 2 2 Reject 3 | . . . . . . . . . 2 1 Recyclers 1 | . . . . . . . . . . 1 Scanalyzers . | . . . . . . . . . . . Garrison Access 1 | . . . . . . . . . . 1 Jam 1 | . . . . . . . . . . 1 Data Cores Recovered 2 | . . . . . . . . . 2 . Used . | . . . . . . . . . . . Hacking Detections 27 | . 3 . 3 . . . 6 1 11 3 Full Trace Events . | . . . . . . . . . . . Feedback Events . | . . . . . . . . . . . Feedback Blocked . | . . . . . . . . . . . Robot Schematics Acquired . | . . . . . . . . . . . Robots Built . | . . . . . . . . . . . Matter . | . . . . . . . . . . . Time . | . . . . . . . . . . . Total Robot Build Rating . | . . . . . . . . . . . Part Schematics Acquired 1 | . . . . . . . 1 . . . Parts Built 1 | . . . . . . . . . . 1 Matter 190 | . . . . . . . . . . 190 Time 95 | . . . . . . . . . . 95 Total Part Build Rating 5 | . . . . . . . . . . 5 Parts Repaired . | . . . . . . . . . . . Time . | . . . . . . . . . . . Parts Recycled . | . . . . . . . . . . . Recycled Matter . | . . . . . . . . . . . Retrieved Matter . | . . . . . . . . . . . Retrieved Components . | . . . . . . . . . . . Parts Scanalyzed 1 | . . . . . . . 1 . . . Part Schematics Acquired 1 | . . . . . . . 1 . . . Parts Damaged . | . . . . . . . . . . . Bothacking | -11 -10 -10 -9 -9 -9 -8 -8 -7 -7 -6 ------------ Run | Scr Mat Min Mat Min Exi Min Mat Fac Sto Fac Used RIF Installer . | . . . . . . . . . . . Robots Hacked . | . . . . . . . . . . . Non-combat . | . . . . . . . . . . . Combat . | . . . . . . . . . . . Robot Hacks Applied . | . . . . . . . . . . . Relay Couplers Released 1 | . . . . . . . . . . 1 Machine Destruction 1 | . . . . . . . . . . 1 Robots Rewired . | . . . . . . . . . . . Allies Hacked . | . . . . . . . . . . . Hacks Repelled . | . . . . . . . . . . . Allies | -11 -10 -10 -9 -9 -9 -8 -8 -7 -7 -6 -------- Run | Scr Mat Min Mat Min Exi Min Mat Fac Sto Fac Total Allies 13 | . . . . 3 . . . . 10 . Largest Group 10 | . . . . 3 1 1 . . 10 8 Highest-Rated Group 173 | . . . . 40 11 11 . . 173 141 Highest-Rated Ally 29 | . . . . 16 11 11 . . 29 29 Total Orders 2 | . . . . . . . . . . 2 STAY 1 | . . . . . . . . . . 1 FOLLOW 1 | . . . . . . . . . . 1 Ally Attacks 85 | . . . . 8 . . . . 32 45 Total Damage 1187 | . . . . 76 . . . . 482 629 Kills 8 | . . . . . . . . . 3 5 Allies Corrupted 1 | . . . . . . . . . . 1 Allies Melted . | . . . . . . . . . . . Intel | -11 -10 -10 -9 -9 -9 -8 -8 -7 -7 -6 ------- Run | Scr Mat Min Mat Min Exi Min Mat Fac Sto Fac Robot Analysis Total 1 | . . . 1 . . . . . . . Derelict Logs Recovered 4 | . . 2 . 2 . . . . . . Drone Launches . | . . . . . . . . . . . Drone Recoveries . | . . . . . . . . . . . Exploration | -11 -10 -10 -9 -9 -9 -8 -8 -7 -7 -6 ------------- Run | Scr Mat Min Mat Min Exi Min Mat Fac Sto Fac Turns Passed 7283 | 29 470 659 141 593 744 25 597 550 2000 1475 Spaces Moved 4725 | 8 291 541 118 483 602 20 373 380 1002 907 Core . | . . . . . . . . . . . Treads 120 | . . . . . . . . . . 120 Legs . | . . . . . . . . . . . Wheels 4605 | 8 291 541 118 483 602 20 373 380 1002 787 Hover . | . . . . . . . . . . . Flight . | . . . . . . . . . . . Fastest Speed 80 | 80 80 100 110 110 100 130 113 116 113 116 Average Speed 115 | 80 98 103 110 110 116 130 117 119 115 128 Slowest Speed 180 | 80 110 110 110 110 130 130 130 120 130 180 Overloaded Moves . | . . . . . . . . . . . Propulsion Burnouts . | . . . . . . . . . . . Robots Hopped . | . . . . . . . . . . . Cave-ins Triggered . | . . . . . . . . . . . Exploration Rate (%) 47 | 3 41 98 16 99 91 9 36 14 96 16 Regions Visited 10 Branch Regions 5 Pre-discovered Areas 2 | . . 1 . 1 . . . . . . Known Exits Taken 4 | . 1 . 1 . . . 1 1 . . Unknown Exits Taken 6 | 1 . 1 . 1 1 1 . . 1 . Scrap Searched 2 | . . 2 . . . . . . . . Spaces Dug 34 | . . . . . . . 6 4 24 . Terrain Destroyed 72 | . 34 . . . . . 6 4 28 . Melee 34 | . . . . . . . 6 4 24 . Projectile 4 | . . . . . . . . . 4 . AOE 34 | . 34 . . . . . . . . . Terrain Rammed . | . . . . . . . . . . . Walls Destroyed . | . . . . . . . . . . . Machines Disabled . | . . . . . . . . . . . Actions | -11 -10 -10 -9 -9 -9 -8 -8 -7 -7 -6 --------- Run | Scr Mat Min Mat Min Exi Min Mat Fac Sto Fac Total 6098 | 23 388 594 130 533 648 19 498 442 1658 1165 Wait 784 | . 1 13 1 40 9 . 83 19 434 184 Move 4715 | 7 290 540 117 482 601 19 372 379 1001 907 Hop . | . . . . . . . . . . . Pick Up 104 | 1 21 4 5 2 24 . 8 7 18 14 Fast Attach 48 | 1 4 4 1 1 1 . 5 3 22 6 Attach 41 | . 3 2 2 . 3 . 3 5 11 12 Detach 15 | . . 1 . . . . . 3 8 3 Swap 35 | 3 2 1 . . 2 . 3 3 20 1 Drop 102 | 6 7 6 4 3 8 . 9 8 37 14 Fire 204 | 5 60 23 . 5 . . 9 10 68 24 Melee 42 | . . . . . . . 6 5 31 . Ram . | . . . . . . . . . . . Kick . | . . . . . . . . . . . Crush . | . . . . . . . . . . . Escape Stasis 8 | . . . . . . . . . 8 . Rewire . | . . . . . . . . . . . Trap . | . . . . . . . . . . . Miscellaneous . | . . . . . . . . . . . Route ------- -11/Scrapyard -10/Materials (discovered 3 exits: *Mat / *Min x2) -10/Mines (discovered 2 exits: *Mat x2) -9/Materials (discovered 2 exits: *Min x2) -9/Mines (discovered 3 exits: *Mat x2 / *Exi) -9/Exiles (discovered 2 exits: [*Min x2]) -8/Mines -8/Materials -7/Factory -7/Storage (discovered 2 exits: *Fac / [*Rec]) -6/Factory History --------- Turn | Location | Event 22 | -11/Scrapyard | Discovered new exit (range 2) 30 | -11/Scrapyard | Entered Materials 249 | -10/Materials | Discovered new exit (range 4) 308 | -10/Materials | Build established: Mutant 362 | -10/Materials | Lost 3 parts (2n1w) 404 | -10/Materials | Identified exit to Mines 500 | -10/Materials | Entered Mines 501 | -10/Mines | Assembled infested the area 506 | -10/Mines | Assisted by a Guerilla fighting off Assembled 510 | -10/Mines | Met a Derelict bent on vengeance 645 | -10/Mines | Learned Materials security intel 781 | -10/Mines | Discovered new exit (range 9) 797 | -10/Mines | Learned location of Storage (-7) 915 | -10/Mines | Discovered new exit (range 13) 1034 | -10/Mines | Core integrity fell below 50% 1159 | -10/Mines | Entered Materials 1159 | -9/Materials | Evolved 2 slots: Weapon x2 1280 | -9/Materials | Identified exit to Mines 1300 | -9/Materials | Entered Mines 1305 | -9/Mines | Assisted by bots powering up and referring to "LRC-V3" 1422 | -9/Mines | Destroyed YI-UF0 1436 | -9/Mines | Joined a pair of Derelicts in attacking an 0b10 outpost 1481 | -9/Mines | Build established: Gunner 1519 | -9/Mines | Discovered new exit (range 7) 1543 | -9/Mines | Learned location of 1 exit from Materials 1676 | -9/Mines | Discovered new exit (range 10) 1880 | -9/Mines | Deemed a non-threat by the Exiles lab entrance 1880 | -9/Mines | Discovered new exit (range 5) 1893 | -9/Mines | Entered Exiles 1893 | -9/Exiles | Accompanied by 1 ally 1908 | -9/Exiles | Discovered new exit (range 15) 1934 | -9/Exiles | Met 8R-AWN 1952 | -9/Exiles | Met EX-HEX 2016 | -9/Exiles | Met EX-DEC 2037 | -9/Exiles | Visited The Gauntlet 2317 | -9/Exiles | Met EX-BIN 2334 | -9/Exiles | Aligned with FarCom system 2335 | -9/Exiles | Given EX-Vault access code 2364 | -9/Exiles | Opened EX-Vault 2376 | -9/Exiles | Found AWS/Thermal 2399 | -9/Exiles | Warned to stay clear of 0b10 Research branches 2619 | -9/Exiles | Discovered new exit (range 10) 2637 | -9/Exiles | Left Exiles lab with AWS/Thermal 2637 | -9/Exiles | Entered Mines 2637 | -8/Mines | Accompanied by 1 ally 2656 | -8/Mines | Discovered new exit (range 6) 2662 | -8/Mines | Entered Materials 2662 | -8/Materials | Evolved 2 slots: Propulsion x1, Utility x1 2663 | -8/Materials | Identified exit to Factory 3259 | -8/Materials | Entered Factory 3259 | -7/Factory | Evolved 2 slots: Utility x2 3260 | -7/Factory | Identified exit to Storage 3735 | -7/Factory | Found Powered Armor 3809 | -7/Factory | Entered Storage 3819 | -7/Storage | Build established: Hauler-Tank 4230 | -7/Storage | Found Prototype Launcher 4230 | -7/Storage | Identified Rocket Array 4584 | -7/Storage | Build established: Hauler-Mutant 5001 | -7/Storage | Found Rocket Array 5148 | -7/Storage | Used back door to open Recycling access 5148 | -7/Storage | Discovered new exit (range 5) 5521 | -7/Storage | Discovered new exit (range 14) 5524 | -7/Storage | Assisted by bots powering up and referring to "LRC-V3" 5809 | -7/Storage | Entered Factory 5809 | -6/Factory | Accompanied by 8 allies 5809 | -6/Factory | Evolved 2 slots: Utility x2 6105 | -6/Factory | Build established: Commander-Skirmisher 6169 | -6/Factory | Found Prototype Processor 6169 | -6/Factory | Identified Exp. Signal Interpreter 6597 | -6/Factory | Local fabrication network quarantined 6621 | -6/Factory | Fabricated Lrn. Missile Launcher (x1) 6640 | -6/Factory | Found Prototype Device 6640 | -6/Factory | Identified Exp. Terrain Scanner 6859 | -6/Factory | First assault squad dispatched 7253 | -6/Factory | Build established: Hauler-Skirmisher 7284 | -6/Factory | Self-destructed Last Messages --------------- 07202_ Prc. Assault Rifle destroyed. 07209_ ALERT: Significant disruption in Zone 5N, assault force dispatched. 07227_ Destroyed Gravmag System. 07227_ P-60 Hacker destroyed. 07231_ Dropped Remote Datajack. 07231_ Dropped Imp. Light Armor Plating. 07235_ Acquired Shock Rifle. 07239_ JBC JCZ 7X27|><8=M>XIEYIPOAWNUL 07239_ Acquired Shock Rifle. 07240_ Acquired 44 matter. 07256_ W-25 Informer sends out distress signal. 07282_ C-30 ARC bursts open, deploying its payload. 07282_ G-67 Veteran unfolds itself. 07282_ G-50 Soldier unfolds itself. 07282_ E-15 Imp unfolds itself. 07284_ Hvy. Deuterium Engine blown off. 07284_ Hrd. Light Armor Plating blown off. 07284_ Med. Treads blown off. 07284_ Prc. Assault Rifle blown off. 07284_ E-15 Imp destroyed. Map ----- +----------------------------------------------------+ | # ## | | # """ ## | | # """ + | | #* """ ## ## ##### | | # ## """ ########### ## | | # """ ## """ # **[*!!+ + | | # """ # """ # **!!!# # | | # """ # " " F" # """!!=!!# # | | #! + " " """ ^+ """![! !## # | | # """ # " " "" # """="="=## # | | # """ # " " # !!"Y" ## # | | # """ ## " " # * |""" ## ### # | | # ## " " # ## #?# # | | # """ ## " " ###+######## #?# #### | | # """ ## " " #??????#+###+#### | | # """ ## " " #??????# | | # ## #??????# | | ######+### ######## | | ?????# % / # | | ?????# #####+## ########## # """ | | ?????# ## ! # #????????# # """ | | ?????# ## # #????????# # """ | | ?????# ## ! # #????????# # | | ?????# ## # #????????# # """"" | | ???### ########+############+#### """"" | | ???# #?# =@* + g / """ | | ???# #?# [!% # # | | ???# #?# #g g ####+##### | | ???# #?# # | | ???# #?# g# | | ???#######?# gg# | | ???????????# g/ * | | ???????????# # = | | ???????????# # ###+############ | | ???????????###+###### # ! !! #? | | ?????????????# # !| # | | ?????????????# # # | | ?????????????# # """ # | | ?????????????# # """"" # | | ?????????????# # """"" # | | ?????????????##### # # | | ?????????????????# # """ # | | ?????????????????# # """"" # | | ?????????????????# # """"" # | | ?????????????????# # # | | ?????????????????# # # | | ???????###########+## #########+###### | | ???????# ! # #???????#]#????? | | ???????# ! # #???????# #????? | | ???????# = # #???????#*###??? | +----------------------------------------------------+ Best States ------------- Heat Dissipation 64 Energy Generation 18 Energy Capacity 310 Matter Stores 300 Matter Capacity 300 Sight Range 16 Robot Scan Range 13 Terrain Scan Range 16 Terrain Scan Density 10 Jamming Range 8 Armor Coverage 550 Evasion (%) 44 Recoil Reduction 3 Defensive Hacking 10 Item Schematics ----------------- Armor Integrity Analyzer | -8/Materials | Scanalyzed Robot Schematics ------------------ None Fabricated ------------ Lrn. Missile Launcher | x1 | -6/Factory | Preloaded Alien Tech Used ----------------- None Achievements -------------- None Challenges ------------ None Game ------ Seed SystemHugeHumpback Manual? 0 Play Time 02:43:38 Cumulative 175.6 hours Start 2021.10.11 @ 21:09:50 End 2021.10.13 @ 19:06:37 Sessions 5 Manual Loads 0 Difficulty Rogue Special Mode None Game No. 63 Rogue 60 Adventurer 0 Explorer 3 Win Type - Total 3 Types 2/0/0/1/0/0/0/0/0 Lore% 45 Gallery% 65 Achievement% 47 Wizard Run 0 Options --------- ASCII 0 Keyboard 0 Movement Numpad Keybinds 0 Fullscreen 1 Font 18/SmallcapsGlow Map View 76x50 Tactical HUD 1 Map Filters NONE Filters NONE Steam 1 RUN: 2b5ae757-3d60-4376-ac6a-2114c6f895ac